fUST/lending_fUST_20250225
["ID","MTS","AMOUNT","RATE_DAILY","PERIOD"]
[354434703,1740492651964,-500.0,0.00046575,120]
[354434704,1740492651974,-500.0,0.00046575,120]
[354434705,1740492651983,-500.78392675,0.00046575,120]
[354434706,1740492651992,-509.68746784,0.00046575,120]
[354434707,1740492652002,-1637.96,0.00046575,120]
[354434708,1740492652012,-500.0,0.00046575,120]
[354434709,1740492652022,-500.0,0.00046575,120]
[354434710,1740492652032,-501.16227041,0.00046575,120]
[354434711,1740492652041,-500.0,0.00046575,120]
[354434712,1740492652051,-500.0,0.00046575,120]
[354434713,1740492652061,-500.0,0.00046575,120]
[354434714,1740492652071,-500.49095676,0.00046575,120]
[354434715,1740492652081,-500.0,0.00046575,120]
[354434716,1740492652091,-500.0,0.00046575,120]
[354434717,1740492652101,-500.0,0.00046575,120]
[354434718,1740492652112,-500.0,0.00046575,120]
[354434719,1740492652125,-501.50683753,0.00046575,120]
[354434720,1740492652136,-500.0,0.00046575,120]
[354434721,1740492652146,-500.0,0.00046575,120]
[354434722,1740492652157,-500.0,0.00046575,2]
[354434723,1740492652167,-1340.34,0.00046575,120]
[354434724,1740492652177,-500.0,0.00046575,120]
[354434725,1740492652187,-500.0,0.00046575,120]
[354434726,1740492652201,-501.22224633,0.00046575,120]
[354434727,1740492652211,-3297.21,0.00046575,120]
[354434728,1740492652221,-655.06,0.00046575,120]
[354434729,1740492652230,-500.0,0.00046575,2]
[354434730,1740492652240,-1008.88,0.00046575,120]
[354434731,1740492652250,-500.0,0.00046575,120]
[354434732,1740492652260,-500.0,0.00046575,120]
[354434733,1740492652269,-502.49758187,0.00046575,120]
[354434734,1740492652279,-3695.32,0.00046575,120]
[354434735,1740492652289,-664.144878,0.00046575,120]
[354434736,1740492652299,-3695.32,0.00046575,120]
[354434737,1740492652308,-664.144878,0.00046575,120]
[354434738,1740492652318,-3695.32,0.00046575,120]
[354434739,1740492652327,-3695.32,0.00046575,120]
[354434740,1740492652336,-3695.32,0.00046575,120]
[354434741,1740492652347,-3695.32,0.00046575,120]
[354434742,1740492652356,-500.0,0.00046575,120]
[354434743,1740492652366,-3695.32,0.00046575,120]
[354434744,1740492652375,-3695.32,0.00046575,120]
[354434745,1740492652385,-3695.32,0.00046575,120]
[354434746,1740492652395,-500.57311242,0.00046575,30]
[354434747,1740492652404,-3695.32,0.00046575,120]
[354434748,1740492652414,-3695.32,0.00046575,120]
[354434749,1740492652423,-500.0,0.00046575,120]
[354434750,1740492652433,-3695.32,0.00046575,120]
[354434751,1740492652442,-3695.32,0.00046575,120]
[354434752,1740492652451,-151.0,0.00046575,120]
[354434753,1740492652461,-3695.32,0.00046575,120]
[354434754,1740492652471,-3695.32,0.00046575,120]
[354434755,1740492652480,-500.0,0.00046575,120]
[354434756,1740492652489,-3695.32,0.00046575,120]
[354434757,1740492652499,-500.0,0.00046575,120]
[354434758,1740492652509,-3695.32,0.00046575,120]
[354434759,1740492652519,-3695.32,0.00046575,120]
[354434760,1740492652528,-500.0,0.00046575,120]
[354434761,1740492652538,-3695.32,0.00046575,120]
[354434762,1740492652547,-664.144878,0.00046575,120]
[354434763,1740492652557,-500.0,0.00046575,120]
[354434764,1740492652567,-3695.32,0.00046575,120]
[354434765,1740492652576,-3695.32,0.00046575,120]
[354434766,1740492652586,-664.144878,0.00046575,120]
[354434767,1740492652597,-3695.32,0.00046575,120]
[354434768,1740492652607,-500.0,0.00046575,21]
[354434769,1740492652616,-3695.32,0.00046575,120]
[354434770,1740492652626,-3695.44919999,0.00046575,120]
[354434771,1740492652636,-500.0,0.00046575,120]
[354434772,1740492652646,-500.0,0.00046575,120]
[354434773,1740492652655,-500.0,0.00046575,120]
[354434774,1740492652665,-500.0,0.00046575,120]
[354434775,1740492652675,-994.01,0.00046575,120]
[354434776,1740492652685,-500.0,0.00046575,120]
[354434777,1740492652695,-500.0,0.00046575,120]
[354434778,1740492652704,-500.0,0.00046575,120]
[354434779,1740492652715,-500.0,0.00046575,120]
[354434780,1740492652724,-500.0,0.00046575,120]
[354434781,1740492652734,-500.0,0.00046575,120]
[354434782,1740492652744,-5212.85,0.00046575,120]
[354434783,1740492652754,-1190.15,0.00046575,120]
[354434784,1740492652763,-500.0,0.00046575,120]
[354434785,1740492652774,-500.0,0.00046575,120]
[354434786,1740492652784,-500.0,0.00046575,120]
[354434787,1740492652794,-500.0,0.00046575,120]
[354434788,1740492652804,-772.91,0.00046575,120]
[354434789,1740492652813,-500.0,0.00046607,2]
[354434790,1740492652823,-500.0,0.00046707,2]
[354434791,1740492652833,-500.0,0.00046807,2]
[354434792,1740492652843,-160.3474055,0.00046848,30]
[354434793,1740492652853,-500.0,0.00046849,120]
[354434794,1740492652862,-870.03,0.00046849,120]
[354434795,1740492652871,-500.0,0.00046849,120]
[354434796,1740492652881,-500.0,0.00046849,120]
[354434797,1740492652891,-500.0,0.00046849,120]
[354434798,1740492652901,-500.0,0.00046849,120]
[354434799,1740492652910,-500.0,0.00046849,120]
[354434800,1740492652919,-502.37743595,0.00046849,120]
[354434801,1740492653034,-358.96403759,0.00046849,120]
[354434802,1740492653047,-500.0,0.00046849,120]
[354434803,1740492653057,-500.0,0.00046849,120]
[354434804,1740492653067,-500.0,0.00046849,120]
[354434805,1740492653077,-500.0,0.00046849,120]
[354434806,1740492653087,-500.0,0.00046849,120]
[354434807,1740492653099,-500.0,0.00046849,120]
[354434808,1740492653109,-500.0,0.00046849,30]
[354434809,1740492653123,-500.0,0.00046849,120]
[354434810,1740492653133,-500.0,0.00046849,120]
[354434811,1740492653143,-502.74240845,0.00046849,120]
[354434812,1740492653153,-505.42047916,0.00046849,120]
[354434813,1740492653163,-501.51615591,0.00046849,120]
[354434814,1740492653173,-500.0,0.00046849,120]
[354434815,1740492653183,-503.41771493,0.00046849,120]
[354434816,1740492653193,-500.0,0.00046849,120]
[354434817,1740492653204,-500.0,0.00046849,120]
[354434818,1740492653214,-500.0,0.00046849,120]
[354434819,1740492653224,-500.0,0.00046849,120]
[354434820,1740492653234,-500.0,0.00046849,120]
[354434821,1740492653244,-500.0,0.00046849,120]
[354434822,1740492653254,-593.46980721,0.00046849,120]
[354434823,1740492653264,-500.0,0.00046849,120]
[354434824,1740492653274,-500.0,0.00046849,120]
[354434825,1740492653283,-500.0,0.00046849,120]
[354434826,1740492653293,-491.64639515,0.00046849,120]
[354434827,1740492653303,-618.09,0.00046849,120]
[354434828,1740492653313,-500.0,0.00046849,120]
[354434829,1740492653322,-500.0,0.00046849,120]
[354434830,1740492653332,-500.0,0.00046849,120]
[354434831,1740492653342,-500.0,0.00046849,120]
[354434832,1740492653351,-500.0,0.00046849,120]
[354434833,1740492653361,-603.34087825,0.00046849,120]
[354434834,1740492653370,-500.0,0.00046849,2]
[354434835,1740492653380,-500.0,0.00046849,120]
[354434836,1740492653390,-500.65690588,0.00046849,120]
[354434837,1740492653399,-500.0,0.00046849,120]
[354434838,1740492653409,-500.0,0.00046849,120]
[354434839,1740492653418,-500.0,0.00046849,120]
[354434840,1740492653429,-500.0,0.00046849,120]
[354434841,1740492653438,-500.0,0.00046849,120]
[354434842,1740492653448,-500.0,0.00046849,120]
[354434843,1740492653458,-1396.8,0.00046849,120]
[354434844,1740492653467,-500.0,0.00046849,120]
[354434845,1740492653478,-500.0,0.00046849,120]
[354434846,1740492653487,-1002.83,0.00046849,120]
[354434847,1740492653496,-529.37276611,0.00046849,120]
[354434848,1740492653506,-500.0,0.00046849,120]
[354434849,1740492653516,-500.0,0.00046849,120]
[354434850,1740492653525,-500.0,0.00046849,120]
[354434851,1740492653535,-508.58728011,0.00046849,120]
[354434852,1740492653545,-500.0,0.00046849,120]
[354434853,1740492653554,-698.25,0.00046849,120]
[354434854,1740492653563,-500.0,0.00046849,120]
[354434855,1740492653573,-454.98644617,0.00046849,120]
[354434856,1740492653583,-500.0,0.00046849,120]
[354434857,1740492653593,-500.0,0.00046849,120]
[354434858,1740492653603,-1000.0,0.00046849,2]
[354434859,1740492653612,-500.0,0.00046849,120]
[354434860,1740492653622,-500.0,0.00046849,120]
[354434861,1740492653631,-153.63577998,0.00046849,120]
[354434862,1740492653640,-500.0,0.00046849,120]
[354434863,1740492653650,-571.97,0.00046849,120]
[354434864,1740492653659,-500.0,0.00046849,120]
[354434865,1740492653669,-281.61012932,0.00046849,120]
[354434866,1740492653678,-500.0,0.00046849,120]
[354434867,1740492653688,-743.75,0.00046849,120]
[354434868,1740492653697,-500.0,0.00046849,120]
[354434869,1740492653707,-374.62688847,0.00046849,120]
[354434870,1740492653716,-1285.9,0.00046849,120]
[354434871,1740492653726,-500.0,0.00046849,120]
[354434872,1740492653735,-500.0,0.00046849,120]
[354434873,1740492653745,-309.34119708,0.00046849,120]
[354434874,1740492653755,-466.60849821,0.00046849,120]
[354434875,1740492653765,-505.64585682,0.00046849,120]
[354434876,1740492653775,-500.0,0.00046849,120]
[354434877,1740492653785,-500.0,0.00046849,120]
[354434878,1740492653795,-500.0,0.00046849,120]
[354434879,1740492653804,-503.13241147,0.00046849,120]
[354434880,1740492653814,-332.88445044,0.00046849,120]
[354434881,1740492653823,-944.17,0.00046849,120]
[354434882,1740492653833,-500.0,0.00046849,120]
[354434883,1740492653843,-500.0,0.00046849,120]
[354434884,1740492653853,-1255.73,0.00046849,120]
[354434885,1740492653863,-500.0,0.00046849,120]
[354434886,1740492653872,-500.0,0.00046849,120]
[354434887,1740492653881,-1132.73,0.00046849,120]
[354434888,1740492653891,-500.0,0.00046849,120]
[354434889,1740492653901,-500.0,0.00046849,120]
[354434890,1740492653910,-500.0,0.00046849,120]
[354434891,1740492653920,-3208.18,0.00046849,120]
[354434892,1740492653929,-500.0,0.00046849,120]
[354434893,1740492653939,-500.0,0.00046849,120]
[354434894,1740492653948,-1358.51,0.00046849,120]
[354434895,1740492653958,-500.0,0.00046849,120]
[354434896,1740492653967,-501.26615432,0.00046849,120]
[354434897,1740492653977,-500.0,0.00046849,120]
[354434898,1740492653987,-500.0,0.00046849,120]
[354434899,1740492653996,-500.65921,0.00046849,120]
[354434900,1740492654006,-500.0,0.00046849,120]
[354434901,1740492654016,-500.0,0.00046849,120]
[354434902,1740492654026,-500.0,0.00046849,120]
[354434903,1740492654035,-503.31003367,0.00046849,120]
[354434904,1740492654045,-420.38821268,0.00046849,120]
[354434905,1740492654054,-503.43115524,0.00046849,120]
[354434906,1740492654064,-1065.66,0.00046849,20]
[354434907,1740492654073,-500.0,0.00046849,120]
[354434908,1740492654083,-500.0,0.00046849,120]
[354434909,1740492654092,-582.16823479,0.00046849,120]
[354434910,1740492654102,-500.0,0.00046849,120]
[354434911,1740492654115,-500.0,0.00046849,120]
[354434912,1740492654125,-500.0,0.00046849,120]
[354434913,1740492654134,-504.82627828,0.00046849,120]
[354434914,1740492654144,-500.0,0.00046849,120]
[354434915,1740492654153,-2599.63,0.00046849,120]
[354434916,1740492654165,-506.0439473,0.00046849,120]
[354434917,1740492654175,-500.0,0.00046849,120]
[354434918,1740492654184,-500.0,0.00046849,120]
[354434919,1740492654194,-501.69641121,0.00046849,120]
[354434920,1740492654204,-500.0,0.00046849,120]
[354434921,1740492654213,-500.0,0.00046849,120]
[354434922,1740492654222,-500.0,0.00046849,120]
[354434923,1740492654232,-501.8997293,0.00046849,120]
[354434924,1740492654242,-500.0,0.00046849,120]
[354434925,1740492654251,-500.0,0.00046849,120]
[354434926,1740492654260,-501.71620983,0.00046849,120]
[354434927,1740492654270,-500.0,0.00046849,120]
[354434928,1740492654279,-500.0,0.00046849,120]
[354434929,1740492654289,-502.00522728,0.00046849,120]
[354434930,1740492654299,-500.0,0.00046849,120]
[354434931,1740492654308,-500.0,0.00046849,120]
[354434932,1740492654317,-508.40960132,0.00046849,120]
[354434933,1740492654327,-500.0,0.00046849,120]
[354434934,1740492654336,-544.68,0.00046849,120]
[354434935,1740492654347,-500.0,0.00046849,120]
[354434936,1740492654356,-500.0,0.00046849,120]
[354434937,1740492654366,-500.0,0.00046849,120]
[354434938,1740492654376,-234.89255129,0.00046849,120]
[354434939,1740492654384,-1292.19,0.00046849,120]
[354434940,1740492654394,-500.0,0.00046849,30]
[354434941,1740492654403,-502.23662351,0.00046849,120]
[354434942,1740492654413,-500.0,0.00046849,120]
[354434943,1740492654423,-500.0,0.00046849,120]
[354434944,1740492654433,-500.0,0.00046849,120]
[354434945,1740492654442,-500.0,0.00046849,120]
[354434946,1740492654452,-500.0,0.00046849,120]
[354434947,1740492654461,-500.0,0.00046849,120]
[354434948,1740492654470,-907.87,0.00046849,120]
[354434949,1740492654480,-555.86167146,0.00046849,120]
[354434950,1740492654490,-830.16,0.00046849,120]
[354434951,1740492654499,-500.0,0.00046849,120]
[354434952,1740492654509,-500.0,0.00046849,120]
[354434953,1740492654518,-500.0,0.00046849,120]
[354434954,1740492654528,-500.0,0.00046849,120]
[354434955,1740492654537,-506.45989574,0.00046849,120]
[354434956,1740492654547,-601.99437242,0.00046849,120]
[354434957,1740492654556,-500.0,0.00046849,120]
[354434958,1740492654565,-1548.25,0.00046849,120]
[354434959,1740492654575,-694.31,0.00046849,120]
[354434960,1740492654584,-500.0,0.00046849,120]
[354434961,1740492654593,-502.22216444,0.00046849,120]
[354434962,1740492654603,-500.0,0.00046849,120]
[354434963,1740492654612,-500.0,0.00046849,120]
[354434964,1740492654621,-500.0,0.00046849,120]
[354434965,1740492654630,-500.0,0.00046849,120]
[354434966,1740492654641,-500.0,0.00046849,120]
[354434967,1740492654650,-151.0,0.00046849,120]
[354434968,1740492654659,-151.0,0.00046849,5]
[354434969,1740492654669,-500.0,0.00046849,120]
[354434970,1740492654678,-500.0,0.00046849,120]
[354434971,1740492654688,-151.0,0.00046849,120]
[354434972,1740492654697,-1553.16,0.00046849,120]
[354434973,1740492654707,-500.0,0.00046849,120]
[354434974,1740492654716,-1143.38,0.00046849,120]
[354434975,1740492654726,-500.0,0.00046849,120]
[354434976,1740492654735,-500.0,0.00046849,120]
[354434977,1740492654745,-791.11,0.00046849,120]
[354434978,1740492654754,-898.96,0.00046849,120]
[354434979,1740492654764,-500.0,0.00046849,120]
[354434980,1740492654773,-500.0,0.00046849,120]
[354434981,1740492654783,-500.0,0.00046849,120]
[354434982,1740492654792,-1057.8,0.00046849,120]
[354434983,1740492654801,-946.75,0.00046849,120]
[354434984,1740492654812,-500.0,0.00046849,120]
[354434985,1740492654822,-500.0,0.00046849,120]
[354434986,1740492654831,-502.7522333,0.00046849,120]
[354434987,1740492654840,-500.0,0.00046849,120]
[354434988,1740492654851,-994.31,0.00046849,120]
[354434989,1740492654861,-1234.72,0.00046849,120]
[354434990,1740492654870,-569.4,0.00046849,120]
[354434991,1740492654880,-632.1,0.00046849,120]
[354434992,1740492654889,-500.0,0.00046849,120]
[354434993,1740492654899,-500.0,0.00046849,120]
[354434994,1740492654908,-508.43106831,0.00046849,120]
[354434995,1740492654918,-500.0,0.00046849,120]
[354434996,1740492654927,-2043.74,0.00046849,120]
[354434997,1740492654936,-501.10285846,0.00046849,120]
[354434998,1740492654946,-500.0,0.00046849,120]
[354434999,1740492654956,-500.0,0.00046849,120]
[354435000,1740492654966,-151.0,0.00046849,120]
[354435001,1740492654975,-1723.26,0.00046849,120]
[354435002,1740492654985,-500.0,0.00046849,120]
[354435003,1740492654995,-500.0,0.00046849,120]
[354435004,1740492655004,-612.56224434,0.00046849,120]
[354435005,1740492655013,-500.0,0.00046849,120]
[354435006,1740492655023,-500.0,0.00046849,120]
[354435007,1740492655033,-500.0,0.00046849,120]
[354435008,1740492655043,-500.0,0.00046849,30]
[354435009,1740492655053,-712.8,0.00046849,120]
[354435010,1740492655063,-590.23,0.00046849,120]
[354435011,1740492655073,-999.3,0.00046849,120]
[354435012,1740492655082,-1308.89,0.00046849,120]
[354435013,1740492655092,-1041.62,0.00046849,120]
[354435014,1740492655102,-500.0,0.00046849,120]
[354435015,1740492655243,-500.0,0.00046849,120]
[354435016,1740492655253,-504.53834276,0.00046849,120]
[354435017,1740492655263,-500.0,0.00046849,120]
[354435018,1740492655273,-2768.435971,0.00046849,3]
[354435019,1740492655283,-500.0,0.00046849,120]
[354435020,1740492655292,-1915.7,0.00046849,120]
[354435021,1740492655301,-2768.435971,0.00046849,3]
[354435022,1740492655312,-547.65947379,0.00046849,120]
[354435023,1740492655321,-500.0,0.00046849,120]
[354435024,1740492655330,-500.0,0.00046849,120]
[354435025,1740492655340,-866.53,0.00046849,120]
[354435026,1740492655350,-818.49,0.00046849,120]
[354435027,1740492655360,-503.5593662,0.00046849,120]
[354435028,1740492655369,-2860.45,0.00046849,120]
[354435029,1740492655379,-500.0,0.00046849,120]
[354435030,1740492655388,-783.36,0.00046849,120]
[354435031,1740492655397,-502.46238684,0.00046849,120]
[354435032,1740492655406,-1662.35,0.00046849,120]
[354435033,1740492655415,-500.0,0.00046849,120]
[354435034,1740492655425,-503.42859159,0.00046849,120]
[354435035,1740492655435,-409.61681926,0.00046849,120]
[354435036,1740492655444,-500.0,0.00046849,120]
[354435037,1740492655454,-500.0,0.00046849,120]
[354435038,1740492655463,-500.0,0.00046849,120]
[354435039,1740492655473,-500.0,0.00046849,120]
[354435040,1740492655482,-500.0,0.00046849,120]
[354435041,1740492655491,-500.0,0.00046849,120]
[354435042,1740492655500,-500.0,0.00046849,120]
[354435043,1740492655510,-500.0,0.00046849,120]
[354435044,1740492655519,-502.96490953,0.00046849,120]
[354435045,1740492655529,-500.0,0.00046849,120]
[354435046,1740492655538,-500.0,0.00046849,120]
[354435047,1740492655547,-500.0,0.00046849,120]
[354435048,1740492655557,-500.0,0.00046849,120]
[354435049,1740492655566,-502.99126634,0.00046849,120]
[354435050,1740492655576,-500.0,0.00046849,120]
[354435051,1740492655586,-500.0,0.00046849,120]
[354435052,1740492655595,-500.0,0.00046849,120]
[354435053,1740492655605,-500.0,0.00046849,120]
[354435054,1740492655615,-500.0,0.00046849,120]
[354435055,1740492655624,-500.0,0.00046849,120]
[354435056,1740492655634,-7363.02,0.00046849,120]
[354435057,1740492655643,-500.0,0.00046849,120]
[354435058,1740492655653,-908.11,0.00046849,120]
[354435059,1740492655663,-500.0,0.00046849,120]
[354435060,1740492655672,-218.6787161,0.00046849,120]
[354435061,1740492655682,-500.0,0.00046849,120]
[354435062,1740492655692,-500.0,0.00046849,120]
[354435063,1740492655701,-409.048072,0.00046849,120]
[354435064,1740492655711,-409.048072,0.00046849,120]
[354435065,1740492655721,-771.74,0.00046849,120]
[354435066,1740492655731,-500.0,0.00046849,120]
[354435067,1740492655740,-805.84,0.00046849,120]
[354435068,1740492655749,-409.048072,0.00046849,120]
[354435069,1740492655759,-409.048072,0.00046849,120]
[354435070,1740492655768,-2658.55,0.00046849,120]
[354435071,1740492655778,-500.0,0.00046849,120]
[354435072,1740492655788,-803.68,0.00046849,120]
[354435073,1740492655798,-503.7741359,0.00046849,120]
[354435074,1740492655807,-500.0,0.00046849,120]
[354435075,1740492655817,-10326.06,0.00046849,120]
[354435076,1740492655826,-500.0,0.00046849,120]
[354435077,1740492655835,-500.0,0.00046849,120]
[354435078,1740492655846,-500.0,0.00046849,120]
[354435079,1740492655855,-500.0,0.00046849,120]
[354435080,1740492655865,-500.0,0.00046849,120]
[354435081,1740492655875,-151.0,0.00046849,120]
[354435082,1740492655884,-178.40780885,0.00046849,120]
[354435083,1740492655894,-1560.19,0.00046849,120]
[354435084,1740492655904,-500.0,0.00046849,2]
[354435085,1740492655913,-500.0,0.00046849,120]
[354435086,1740492655923,-837.34,0.00046849,120]
[354435087,1740492655933,-1065.29,0.00046849,120]
[354435088,1740492655942,-500.0,0.00046849,120]
[354435089,1740492655952,-500.0,0.00046849,120]
[354435090,1740492655961,-500.0,0.00046849,120]
[354435091,1740492655971,-759.82,0.00046849,120]
[354435092,1740492655980,-500.0,0.00046849,120]
[354435093,1740492655990,-250.0,0.00046849,120]
[354435094,1740492655999,-502.42176256,0.00046849,120]
[354435095,1740492656009,-500.0,0.00046849,120]
[354435096,1740492656018,-500.0,0.00046849,120]
[354435097,1740492656028,-3354.45,0.00046849,120]
[354435098,1740492656038,-763.6,0.00046849,45]
[354435099,1740492656047,-683.16,0.00046849,120]
[354435100,1740492656057,-500.0,0.00046849,120]
[354435101,1740492656066,-500.0,0.00046849,120]
[354435102,1740492656076,-236.743,0.00046849,120]
[354435103,1740492656085,-500.0,0.00046849,120]
[354435104,1740492656096,-500.0,0.00046849,120]
[354435105,1740492656105,-500.0,0.00046849,120]
[354435106,1740492656119,-500.0,0.00046849,120]
[354435107,1740492656130,-1542.09,0.00046849,120]
[354435108,1740492656141,-3000.0,0.00046849,30]
[354435109,1740492656150,-622.19,0.00046849,120]
[354435110,1740492656161,-500.0,0.00046849,120]
[354435111,1740492656171,-500.0,0.00046849,120]
[354435112,1740492656181,-508.87527991,0.00046849,120]
[354435113,1740492656191,-500.0,0.00046849,120]
[354435114,1740492656202,-500.0,0.00046849,120]
[354435115,1740492656212,-500.0,0.00046849,120]
[354435116,1740492656222,-273.315442,0.00046849,120]
[354435117,1740492656232,-572.56,0.00046849,120]
[354435118,1740492656242,-273.315442,0.00046849,120]
[354435119,1740492656252,-509.48105309,0.00046849,120]
[354435120,1740492656261,-500.0,0.00046849,120]
[354435121,1740492656271,-500.0,0.00046849,120]
[354435122,1740492656281,-834.01,0.00046849,120]
[354435123,1740492656290,-29233.61,0.00046849,6]
[354435124,1740492656299,-273.315442,0.00046849,120]
[354435125,1740492656309,-273.315442,0.00046849,120]
[354435126,1740492656318,-500.0,0.00046849,120]
[354435127,1740492656328,-500.0,0.00046849,120]
[354435128,1740492656338,-500.0,0.00046849,120]
[354435129,1740492656349,-772.09,0.00046849,120]
[354435130,1740492656358,-1181.44,0.00046849,120]
[354435131,1740492656368,-1740.31,0.00046849,120]
[354435132,1740492656378,-8785.77,0.00046849,120]
[354435133,1740492656387,-759.63,0.00046849,120]
[354435134,1740492656397,-500.0,0.00046849,120]
[354435135,1740492656407,-499.7923,0.00046849,120]
[354435136,1740492656418,-507.01586062,0.00046849,120]
[354435137,1740492656429,-625.3,0.00046849,120]
[354435138,1740492656438,-500.0,0.00046849,120]
[354435139,1740492656448,-1522.34,0.00046849,120]
[354435140,1740492656458,-500.0,0.00046849,120]
[354435141,1740492656468,-2526.78,0.00046849,120]
[354435142,1740492656478,-500.0,0.00046849,120]
[354435143,1740492656488,-500.0,0.00046849,120]
[354435144,1740492656498,-768.21,0.00046849,120]
[354435145,1740492656508,-17597.58,0.00046849,120]
[354435146,1740492656518,-4460.87,0.00046849,120]
[354435147,1740492656528,-500.0,0.00046849,120]
[354435148,1740492656538,-500.0,0.00046849,120]
[354435149,1740492656548,-4364.76,0.00046849,120]
[354435150,1740492656557,-500.0,0.00046849,120]
[354435151,1740492656567,-500.0,0.00046849,120]
[354435152,1740492656576,-500.0,0.00046849,120]
[354435153,1740492656585,-500.0,0.00046849,120]
[354435154,1740492656597,-500.0,0.00046849,120]
[354435155,1740492656607,-500.0,0.00046849,120]
[354435156,1740492656616,-500.0,0.00046849,120]
[354435157,1740492656626,-285.7,0.00046849,120]
[354435158,1740492656637,-285.7,0.00046849,120]
[354435159,1740492656647,-500.0,0.00046849,120]
[354435160,1740492656657,-500.0,0.00046849,120]
[354435161,1740492656666,-998.55,0.00046849,120]
[354435162,1740492656676,-500.0,0.00046849,120]
[354435163,1740492656685,-1745.15,0.00046849,120]
[354435164,1740492656695,-285.7,0.00046849,120]
[354435165,1740492656704,-285.7,0.00046849,120]
[354435166,1740492656714,-500.0,0.00046849,120]
[354435167,1740492656723,-500.0,0.00046849,120]
[354435168,1740492656732,-500.0,0.00046849,120]
[354435169,1740492656742,-3905.84,0.00046849,120]
[354435170,1740492656751,-500.0,0.00046849,120]
[354435171,1740492656761,-500.0,0.00046849,120]
[354435172,1740492656771,-188.838224,0.00046849,120]
[354435173,1740492656780,-504.85927931,0.00046849,120]
[354435174,1740492656790,-500.0,0.00046849,120]
[354435175,1740492656800,-500.0,0.00046849,120]
[354435176,1740492656810,-500.0,0.00046849,120]
[354435177,1740492656819,-188.838224,0.00046849,120]
[354435178,1740492656829,-443.2404917,0.00046849,120]
[354435179,1740492656838,-2781.37,0.00046849,120]
[354435180,1740492656848,-1349.385437,0.00046849,120]
[354435181,1740492656857,-500.0,0.00046849,120]
[354435182,1740492656866,-500.0,0.00046849,120]
[354435183,1740492656875,-500.0,0.00046849,120]
[354435184,1740492656884,-500.0,0.00046849,120]
[354435185,1740492656894,-500.0,0.00046849,120]
[354435186,1740492656903,-662.1,0.00046849,120]
[354435187,1740492656913,-500.0,0.00046849,120]
[354435188,1740492656922,-1349.385437,0.00046849,120]
[354435189,1740492656932,-506.95,0.00046849,120]
[354435190,1740492656942,-500.0,0.00046849,120]
[354435191,1740492656951,-500.0,0.00046849,120]
[354435192,1740492656961,-500.0,0.00046849,120]
[354435193,1740492656970,-500.0,0.00046849,120]
[354435194,1740492656980,-500.0,0.00046849,120]
[354435195,1740492656990,-2612.02,0.00046849,120]
[354435196,1740492656999,-512.99991914,0.00046849,120]
[354435197,1740492657008,-500.0,0.00046849,120]
[354435198,1740492657018,-500.0,0.00046849,120]
[354435199,1740492657027,-1097.464256,0.00046849,120]
[354435200,1740492657037,-500.0,0.00046849,120]
[354435201,1740492657046,-2298.81,0.00046849,120]
[354435202,1740492657056,-500.0,0.00046849,120]